fUST/lending_fUST_20240929
["ID","MTS","AMOUNT","RATE_DAILY","PERIOD"]
[339415507,1727602240289,-500.0,0.00015839,7]
[339415508,1727602240298,-500.0,0.00015839,7]
[339415509,1727602240308,-500.0,0.00015839,7]
[339415510,1727602240318,-500.0,0.00015839,7]
[339415511,1727602240327,-500.0,0.00015839,7]
[339415512,1727602240338,-341.46,0.00015839,7]
[339415513,1727602240347,-500.0,0.00015839,7]
[339415514,1727602240357,-500.0,0.00015839,7]
[339415515,1727602240366,-500.0,0.00015839,7]
[339415516,1727602240376,-500.0,0.00015839,7]
[339415517,1727602240385,-203.57433363,0.00015856,2]
[339415518,1727602240394,-500.0,0.00015856,2]
[339415519,1727602240403,-228.17202176,0.00015856,2]
[339415520,1727602240412,-500.0,0.00015856,2]
[339415521,1727602240421,-500.0,0.00015856,2]
[339415522,1727602240430,-500.0,0.00015856,2]
[339415523,1727602240439,-622.74716863,0.00015856,2]
[339415524,1727602240448,-500.0,0.00015856,2]
[339415525,1727602240457,-225.49236945,0.00015856,2]
[339415526,1727602240467,-500.0,0.00015856,2]
[339415527,1727602240476,-500.0,0.00015856,2]
[339415528,1727602240485,-500.0,0.00015856,2]
[339415529,1727602240495,-500.0,0.00015856,2]
[339415530,1727602240505,-500.0,0.00015856,2]
[339415531,1727602240517,-500.0,0.00015856,2]
[339415532,1727602240529,-500.0,0.00015856,2]
[339415533,1727602240539,-500.0,0.00015856,2]
[339415534,1727602240549,-500.0,0.00015856,2]
[339415535,1727602240560,-500.0,0.00015856,2]
[339415536,1727602240571,-178.11638437,0.00015856,2]
[339415537,1727602240585,-500.0,0.00015856,2]
[339415538,1727602240596,-500.0,0.00015856,2]
[339415539,1727602240605,-116607.600035,0.00015857,2]
[339415540,1727602240615,-7067.94404438,0.00015872,2]
[339415541,1727602240625,-800.0,0.00015918,2]
[339415542,1727602240635,-63196.14898143,0.00015934,2]
[339415624,1727602300647,190.7823461,0.00014068,2]
[339415630,1727603029343,153.0,0.0001227,2]
[339415631,1727603029766,153.0,0.0001381,2]
[339415669,1727603432434,-2860.0042123,0.00014233,2]
[339415670,1727603432445,-214.065814,0.00014272,2]
[339415671,1727603432455,-242.8751275,0.0001445,2]
[339415672,1727603432465,-250.0,0.0001451,2]
[339415673,1727603432474,-250.0,0.0001455,2]
[339415674,1727603432484,-250.0,0.0001459,2]
[339415675,1727603432493,-250.0,0.0001463,2]
[339415676,1727603432504,-250.0,0.00014669,2]
[339415677,1727603432514,-250.0,0.00014709,2]
[339415678,1727603432524,-250.0,0.00014749,2]
[339415679,1727603432534,-242.8751275,0.00014769,2]
[339415680,1727603432544,-250.0,0.00014789,2]
[339415681,1727603432554,-250.0,0.00014829,2]
[339415682,1727603432564,-250.0,0.00014868,2]
[339415683,1727603432573,-250.0,0.00014908,2]
[339415684,1727603432583,-250.0,0.00014948,2]
[339415685,1727603432592,-250.0,0.00014988,2]
[339415686,1727603432602,-250.0,0.00015028,2]
[339415687,1727603432612,-250.0,0.00015067,2]
[339415688,1727603432622,-15.03599501,0.00015087,2]
[339415689,1727603432759,-227.83913249,0.00015087,2]
[339415690,1727603432769,-300.0,0.0001509,2]
[339415691,1727603432779,-300.0,0.0001509,2]
[339415692,1727603432790,-172.16086751,0.00015091,2]
[339415697,1727603438471,-627.83913249,0.00015091,2]
[339415698,1727603438483,-206.98828527,0.00015091,2]
[339415700,1727603440291,-1387.30961473,0.00015091,2]
[339415701,1727603440302,-116.82014026,0.00015107,2]
[339415702,1727603440317,-133.17985974,0.00015107,2]
[339415703,1727603440328,-250.0,0.00015147,2]
[339415704,1727603440339,-800.0,0.00015155,2]
[339415705,1727603440351,-250.0,0.00015187,2]
[339415706,1727603440362,-250.0,0.00015227,2]
[339415707,1727603440372,-250.0,0.00015267,2]
[339415708,1727603440381,-153.0,0.0001534,2]
[339415709,1727603440391,-629.517506,0.00015342,2]
[339415710,1727603440403,-475.64324858,0.00015705,2]
[339415711,1727603440413,-379.80773621,0.00015709,2]
[339415712,1727603440423,-391.942,0.00015744,2]
[339415713,1727603440433,-193.58380099,0.00015744,2]
[339415714,1727603440443,-379.80773619,0.00015757,2]
[339415715,1727603440453,-463.48432337,0.00015802,2]
[339415716,1727603440464,-500.0,0.00015802,2]
[339415717,1727603440474,-500.0,0.00015802,2]
[339415718,1727603440483,-500.0,0.00015802,2]
[339415719,1727603440492,-500.0,0.00015802,2]
[339415720,1727603440712,-500.0,0.00015802,2]
[339415721,1727603440722,-500.0,0.00015802,2]
[339415722,1727603440732,-500.0,0.00015802,2]
[339415723,1727603440741,-500.0,0.00015802,2]
[339415724,1727603440750,-500.0,0.00015802,2]
[339415725,1727603440763,-500.0,0.00015802,2]
[339415726,1727603440772,-500.0,0.00015802,2]
[339415727,1727603440781,-343.9353311,0.00015802,2]
[339415728,1727603440791,-500.0,0.00015802,2]
[339415729,1727603440804,-500.0,0.00015802,2]
[339415730,1727603440814,-500.0,0.00015802,2]
[339415731,1727603440824,-500.0,0.00015802,2]
[339415732,1727603440835,-500.0,0.00015802,2]
[339415733,1727603440848,-500.0,0.00015802,2]
[339415734,1727603440857,-500.0,0.00015802,2]
[339415735,1727603440869,-500.0,0.00015802,2]
[339415736,1727603440879,-500.0,0.00015802,2]
[339415737,1727603440889,-500.0,0.00015802,2]
[339415738,1727603440899,-500.0,0.00015802,2]
[339415739,1727603440909,-500.0,0.00015802,2]
[339415740,1727603440921,-500.0,0.00015802,2]
[339415741,1727603440931,-500.0,0.00015802,2]
[339415742,1727603440942,-500.0,0.00015802,2]
[339415743,1727603440952,-500.0,0.00015802,2]
[339415744,1727603440965,-500.0,0.00015802,2]
[339415745,1727603440977,-500.0,0.00015802,2]
[339415746,1727603440987,-500.0,0.00015802,2]
[339415747,1727603440996,-500.0,0.00015802,2]
[339415748,1727603441005,-500.0,0.00015802,2]
[339415749,1727603441014,-500.0,0.00015802,2]
[339415750,1727603441024,-500.0,0.00015802,2]
[339415751,1727603441035,-500.0,0.00015802,2]
[339415752,1727603441046,-500.0,0.00015802,2]
[339415753,1727603441058,-3393.93160453,0.00015803,2]
[339415754,1727603441067,-795.31208603,0.00015804,2]
[339415755,1727603441077,-379.80773619,0.00015804,2]
[339415756,1727603441086,-1000.0,0.00015804,2]
[339415757,1727603441095,-21668.29397749,0.00015804,2]
[339415758,1727603441105,-795.312086,0.00015809,2]
[339415759,1727603441115,-795.312086,0.00015815,2]
[339415760,1727603441124,-795.312086,0.0001582,2]
[339415761,1727603441134,-795.312086,0.00015825,2]
[339415762,1727603441144,-6267.03011287,0.00015841,2]
[339415763,1727603441153,-500.0,0.00015856,2]
[339415764,1727603441162,-200.0,0.0001586,2]
[339415765,1727603441172,-4178.60111448,0.00015894,2]
[339415766,1727603441181,-6267.90167172,0.00015894,2]
[339415767,1727603441190,-150.112234,0.000159,2]
[339415768,1727603441199,-150.448302,0.000159,2]
[339415769,1727603441208,-1617.5050819,0.000159,2]
[339415770,1727603441219,-151.0,0.00015904,2]
[339415771,1727603441228,-151.0,0.00015904,2]
[339415772,1727603441238,-151.0,0.00015904,2]
[339415773,1727603441247,-186.704358,0.00015904,2]
[339415774,1727603441259,-186.704358,0.00015904,2]
[339415775,1727603441269,-299.025292,0.00015904,2]
[339415776,1727603441281,-1866.673571,0.00015904,2]
[339415777,1727603441291,-299.025292,0.00015904,2]
[339415778,1727603441301,-1866.673571,0.00015904,2]
[339415779,1727603441311,-886.961266,0.00015904,2]
[339415780,1727603441322,-886.961266,0.00015904,2]
[339415781,1727603441332,-2093.743692,0.00015904,2]
[339415782,1727603441342,-500.0,0.00015924,2]
[339415783,1727603441352,-500.0,0.00015924,2]
[339415784,1727603441362,-440.28636591,0.00015924,2]
[339415785,1727603441372,-357.84465861,0.00015924,2]
[339415786,1727603441384,-159.72041523,0.00015924,2]
[339415787,1727603441395,-500.0,0.00015924,2]
[339415788,1727603441405,-500.0,0.00015924,2]
[339415789,1727603441416,-500.0,0.00015924,2]
[339415790,1727603441426,-500.0,0.00015924,2]
[339415791,1727603441437,-500.0,0.00015924,2]
[339415792,1727603441446,-500.0,0.00015924,2]
[339415793,1727603441456,-500.0,0.00015924,2]
[339415794,1727603441467,-2000.0,0.00015925,2]
[339415795,1727603441476,-2000.0,0.00015925,2]
[339415796,1727603441487,-2022.48948,0.00015925,2]
[339415797,1727603441499,-151.0,0.00015925,2]
[339415798,1727603441510,-151.0,0.00015925,2]
[339415799,1727603441521,-283.432533,0.00015925,2]
[339415800,1727603441531,-320.769279,0.00015925,2]
[339415801,1727603441540,-320.769279,0.00015925,2]
[339415802,1727603441551,-320.769279,0.00015925,2]
[339415803,1727603441560,-151.0,0.00015925,2]
[339415804,1727603441571,-151.0,0.00015925,2]
[339415805,1727603441582,-320.769279,0.00015925,2]
[339415806,1727603441592,-151.0,0.00015925,2]
[339415807,1727603441603,-320.769279,0.00015925,2]
[339415808,1727603441613,-320.769279,0.00015925,2]
[339415809,1727603441624,-191.34646,0.00015925,2]
[339415810,1727603441634,-191.34646,0.00015925,2]
[339415811,1727603441646,-191.34646,0.00015925,2]
[339415812,1727603441658,-191.34646,0.00015925,2]
[339415813,1727603441668,-191.34646,0.00015925,2]
[339415814,1727603441679,-191.34646,0.00015925,2]
[339415815,1727603441689,-619.167893,0.00015925,2]
[339415816,1727603441700,-619.167893,0.00015925,2]
[339415817,1727603441709,-619.167893,0.00015925,2]
[339415818,1727603441722,-619.167893,0.00015925,2]
[339415819,1727603441732,-619.167893,0.00015925,2]
[339415820,1727603441742,-619.167893,0.00015925,2]
[339415821,1727603441753,-151.0,0.00015925,2]
[339415822,1727603441770,-151.0,0.00015925,2]
[339415823,1727603441779,-151.0,0.00015925,2]
[339415824,1727603441789,-151.0,0.00015925,2]
[339415825,1727603441799,-151.0,0.00015925,2]
[339415826,1727603441811,-151.0,0.00015925,2]
[339415827,1727603441821,-1377.100826,0.00015925,2]
[339415828,1727603441832,-1377.100826,0.00015925,2]
[339415829,1727603441843,-1377.100826,0.00015925,2]
[339415830,1727603441854,-1377.100826,0.00015925,2]
[339415831,1727603441865,-1377.100826,0.00015925,2]
[339415832,1727603441876,-1377.100826,0.00015925,2]
[339415833,1727603441886,-719.911612,0.00015925,2]
[339415834,1727603441897,-719.911612,0.00015925,2]
[339415835,1727603441907,-719.911612,0.00015925,2]
[339415836,1727603441919,-719.911612,0.00015925,2]
[339415837,1727603441929,-719.911612,0.00015925,2]
[339415838,1727603441940,-719.911612,0.00015925,2]
[339415839,1727603441951,-403.280072,0.00015925,2]
[339415840,1727603441962,-403.280072,0.00015925,2]
[339415841,1727603441975,-403.280072,0.00015925,2]
[339415842,1727603441987,-728.131764,0.00015925,2]
[339415843,1727603441997,-403.280072,0.00015925,2]
[339415844,1727603442007,-728.131764,0.00015925,2]
[339415845,1727603442016,-403.280072,0.00015925,2]
[339415846,1727603442025,-728.131764,0.00015925,2]
[339415847,1727603442035,-403.280072,0.00015925,2]
[339415848,1727603442045,-728.131764,0.00015925,2]
[339415849,1727603442056,-728.131764,0.00015925,2]
[339415850,1727603442067,-728.131764,0.00015925,2]
[339415851,1727603442077,-154.798489,0.00015925,2]
[339415852,1727603442086,-151.0,0.00015925,2]
[339415853,1727603442097,-151.0,0.00015925,2]
[339415854,1727603442109,-151.0,0.00015925,2]
[339415855,1727603442119,-151.0,0.00015935,2]
[339415856,1727603442129,-151.0,0.00015935,2]
[339415857,1727603442141,-206.708444,0.00015935,2]
[339415858,1727603442150,-151.0,0.00015936,2]
[339415859,1727603442160,-151.0,0.00015936,2]
[339415860,1727603442170,-151.0,0.00015936,2]
[339415861,1727603442179,-275.165695,0.00015936,2]
[339415862,1727603442191,-275.165695,0.00015936,2]
[339415863,1727603442200,-151.8524,0.00015936,2]
[339415864,1727603442210,-1408.69612,0.00015936,2]
[339415865,1727603442220,-1408.69612,0.00015936,2]
[339415866,1727603442232,-1626.925184,0.00015936,2]
[339415867,1727603442242,-1626.925184,0.00015936,2]
[339415868,1727603442253,-1444.354598,0.00015936,2]
[339415869,1727603442264,-1444.354598,0.00015936,2]
[339415870,1727603442273,-442.44369,0.00015936,2]
[339415871,1727603442283,-442.44369,0.00015936,2]
[339415872,1727603442293,-151.0,0.00015946,2]
[339415873,1727603442303,-151.0,0.00015946,2]
[339415874,1727603442314,-151.0,0.00015946,2]
[339415875,1727603442324,-500.0,0.00015973,2]
[339415876,1727603442333,-500.0,0.00015973,2]
[339415877,1727603442345,-500.0,0.00015973,2]
[339415878,1727603442354,-500.0,0.00015973,2]
[339415879,1727603442364,-500.0,0.00015973,2]
[339415880,1727603442375,-500.0,0.00015973,2]
[339415881,1727603442386,-500.79771524,0.00015973,2]
[339415882,1727603442397,-500.0,0.00015973,2]
[339415883,1727603442407,-308.31034324,0.00015973,2]
[339415884,1727603442419,-500.0,0.00015973,2]
[339415885,1727603442429,-500.0,0.00015973,2]
[339415886,1727603442439,-500.0,0.00015973,2]
[339415887,1727603442449,-500.0,0.00015973,2]
[339415888,1727603442463,-500.0,0.00015973,2]
[339415889,1727603442472,-500.0,0.00015973,2]
[339415890,1727603442481,-183.5,0.00015973,2]
[339415891,1727603442490,-500.0,0.00015973,2]
[339415892,1727603442499,-500.0,0.00015973,2]
[339415893,1727603442510,-500.0,0.00015973,2]
[339415894,1727603442519,-500.0,0.00015973,2]
[339415895,1727603442530,-500.0,0.00015973,2]
[339415896,1727603442539,-251.06641717,0.00015973,2]
[339415897,1727603442548,-500.0,0.00015973,2]
[339415898,1727603442559,-501.14820998,0.00015973,2]
[339415899,1727603442570,-500.0,0.00015973,2]
[339415900,1727603442580,-500.0,0.00015973,2]
[339415901,1727603442591,-151.0,0.00015973,2]
[339415902,1727603442603,-151.0,0.00015973,2]
[339415903,1727603442612,-153.308977,0.00015973,2]
[339415904,1727603442621,-699.771734,0.00015973,2]
[339415905,1727603442631,-699.771734,0.00015973,2]
[339415906,1727603442642,-151.0,0.00015973,2]
[339415907,1727603442651,-151.0,0.00015973,2]
[339415908,1727603442661,-246.3001,0.00015973,2]
[339415909,1727603442670,-246.3001,0.00015973,2]
[339415910,1727603442680,-151.0,0.00015973,2]
[339415911,1727603442689,-163.881646,0.00015973,2]
[339415913,1727603442698,-163.881646,0.00015973,2]
[339415914,1727603442708,-2170.578063,0.00015973,2]
[339415915,1727603442719,-2170.578063,0.00015973,2]
[339415916,1727603442728,-3365.53234902,0.00015973,2]
[339415917,1727603442763,-339.91008498,0.00015973,2]
[339415918,1727603442772,-1537.68100166,0.00015973,2]
[339415924,1727603493093,-2093.743692,0.00015904,2]
[339415925,1727603493103,-2167.76143234,0.00015973,2]
[339415926,1727603493113,-151.0,0.0001599,2]
[339415927,1727603493122,-151.0,0.0001599,2]
[339415928,1727603493131,-151.0,0.0001599,2]
[339415929,1727603493140,-151.0,0.0001599,2]
[339415930,1727603493152,-236.913239,0.0001599,2]
[339415931,1727603493163,-236.913239,0.0001599,2]
[339415932,1727603493172,-171.684049,0.0001599,2]
[339415933,1727603493184,-171.684049,0.0001599,2]
[339415934,1727603493194,-151.0,0.0001599,2]
[339415935,1727603493206,-151.0,0.0001599,2]
[339415936,1727603493216,-151.0,0.0001599,2]
[339415937,1727603493225,-151.0,0.0001599,2]
[339415938,1727603493235,-151.0,0.0001599,2]
[339415939,1727603493245,-543.652871,0.0001599,2]
[339415940,1727603493254,-543.652871,0.0001599,2]
[339415941,1727603493264,-348.246697,0.0001599,2]
[339415942,1727603493274,-151.462988,0.0001599,2]
[339415943,1727603493284,-348.246697,0.0001599,2]
[339415944,1727603493298,-158.284612,0.0001599,2]
[339415945,1727603493308,-158.284612,0.0001599,2]
[339415946,1727603493318,-1442.631507,0.0001599,2]
[339415947,1727603493327,-1442.631507,0.0001599,2]
[339415948,1727603493336,-151.0,0.0001599,2]
[339415949,1727603493346,-151.0,0.0001599,2]
[339415950,1727603493356,-186.704358,0.0001599,2]
[339415951,1727603493366,-186.704358,0.0001599,2]
[339415952,1727603493375,-2858.773645,0.0001599,2]
[339415953,1727603493384,-2858.773645,0.0001599,2]
[339415954,1727603493394,-2093.743692,0.0001599,2]
[339415955,1727603493405,-151.0,0.00015994,2]
[339415956,1727603493415,-151.0,0.00015994,2]
[339415957,1727603493425,-151.0,0.00015994,2]
[339415958,1727603493435,-151.0,0.00015994,2]
[339415959,1727603493445,-151.0,0.00015994,2]
[339415960,1727603493457,-151.0,0.00015994,2]
[339415961,1727603493468,-151.0,0.00015994,2]
[339415962,1727603493478,-236.913239,0.00015994,2]
[339415963,1727603493488,-236.913239,0.00015994,2]
[339415964,1727603493498,-236.913239,0.00015994,2]
[339415965,1727603493508,-236.913239,0.00015994,2]
[339415966,1727603493519,-171.684049,0.00015994,2]
[339415967,1727603493528,-171.684049,0.00015994,2]
[339415968,1727603493538,-171.684049,0.00015994,2]
[339415969,1727603493548,-171.684049,0.00015994,2]
[339415970,1727603493559,-151.888777,0.00015994,2]
[339415971,1727603493568,-151.0,0.00015994,2]
[339415972,1727603493579,-225.484843,0.00015994,2]
[339415973,1727603493589,-151.0,0.00015994,2]
[339415974,1727603493600,-152.936498,0.00015994,2]
[339415975,1727603493610,-151.0,0.00015994,2]
[339415976,1727603493619,-275.165695,0.00015994,2]
[339415977,1727603493629,-275.165695,0.00015994,2]
[339415978,1727603493639,-1408.69612,0.00015994,2]
[339415979,1727603493649,-1408.69612,0.00015994,2]
[339415980,1727603493658,-1626.925184,0.00015994,2]
[339415981,1727603493667,-1626.925184,0.00015994,2]
[339415982,1727603493677,-320.769279,0.00015994,2]
[339415983,1727603493686,-151.0,0.00015994,2]
[339415984,1727603493695,-320.769279,0.00015994,2]
[339415985,1727603493705,-191.34646,0.00015994,2]
[339415986,1727603493714,-191.34646,0.00015994,2]
[339415987,1727603493724,-1444.354598,0.00015994,2]
[339415988,1727603493733,-1444.354598,0.00015994,2]
[339415989,1727603493743,-619.167893,0.00015994,2]
[339415990,1727603493753,-619.167893,0.00015994,2]
[339415991,1727603493762,-151.0,0.00015994,2]
[339415992,1727603493774,-151.0,0.00015994,2]
[339415993,1727603493783,-1377.100826,0.00015994,2]
[339415994,1727603493793,-1377.100826,0.00015994,2]
[339415995,1727603493803,-719.911612,0.00015994,2]
[339415996,1727603493813,-719.911612,0.00015994,2]
[339415997,1727603493824,-442.44369,0.00015994,2]
[339415998,1727603493835,-442.44369,0.00015994,2]
[339415999,1727603493844,-371.737743,0.00015994,2]
[339416000,1727603493854,-371.737743,0.00015994,2]
[339416001,1727603493865,-151.0,0.00015994,2]
[339416002,1727603493875,-151.0,0.00015994,2]
[339416003,1727603493885,-403.280072,0.00015994,2]
[339416004,1727603493895,-728.131764,0.00015994,2]
[339416005,1727603493905,-403.280072,0.00015994,2]
[339416006,1727603493919,-4123.873367,0.00015994,2]
[339416007,1727603493929,-728.131764,0.00015994,2]
[339416008,1727603493940,-4123.873367,0.00015994,2]
[339416009,1727603493950,-151.0,0.00015994,2]
[339416010,1727603493959,-151.0,0.00015994,2]
[339416011,1727603493971,-299.025292,0.00015994,2]
[339416012,1727603493980,-1866.673571,0.00015994,2]
[339416013,1727603493991,-299.025292,0.00015994,2]
[339416014,1727603494001,-1866.673571,0.00015994,2]
[339416015,1727603494011,-886.961266,0.00015994,2]
[339416016,1727603494021,-886.961266,0.00015994,2]
[339416017,1727603494031,-178965.19995601,0.00015999,2]
[339416018,1727603494040,-199142.59752498,0.00016,2]
[339416019,1727603494050,-1000.0,0.00016,16]
[339416020,1727603494060,-5000.0,0.00016,2]
[339416021,1727603494070,-69193.24689411,0.00016,2]
[339416022,1727603494081,-11862.23644353,0.00016,15]
[339416023,1727603494091,-509.816,0.00016,2]
[339416024,1727603494101,-214.72425,0.00016,2]
[339416025,1727603494110,-214.72425,0.00016,2]
[339416026,1727603494120,-151.0,0.00016,2]
[339416027,1727603494129,-151.0,0.00016,2]
[339416028,1727603494372,-151.0,0.00016,2]
[339416029,1727603494382,-150.112233,0.00016,2]
[339416030,1727603494392,-151.0,0.00016,2]
[339416031,1727603494402,-151.0,0.00016,2]
[339416032,1727603494412,-275.165695,0.00016,2]
[339416033,1727603494422,-275.165695,0.00016,2]
[339416034,1727603494432,-1408.69612,0.00016,2]
[339416035,1727603494441,-1408.69612,0.00016,2]
[339416036,1727603494450,-1626.925184,0.00016,2]
[339416037,1727603494460,-1626.925184,0.00016,2]
[339416038,1727603494470,-320.769279,0.00016,2]
[339416039,1727603494479,-151.0,0.00016,2]
[339416040,1727603494489,-320.769279,0.00016,2]
[339416041,1727603494498,-191.34646,0.00016,2]
[339416042,1727603494509,-191.34646,0.00016,2]
[339416043,1727603494518,-1444.354598,0.00016,2]
[339416044,1727603494528,-1444.354598,0.00016,2]
[339416045,1727603494538,-619.167893,0.00016,2]
[339416046,1727603494549,-619.167893,0.00016,2]
[339416047,1727603494558,-151.0,0.00016,2]
[339416048,1727603494568,-151.0,0.00016,2]
[339416049,1727603494578,-1377.100826,0.00016,2]
[339416050,1727603494588,-1377.100826,0.00016,2]
[339416051,1727603494599,-719.911612,0.00016,2]
[339416052,1727603494610,-719.911612,0.00016,2]
[339416053,1727603494621,-442.44369,0.00016,2]
[339416054,1727603494632,-442.44369,0.00016,2]
[339416055,1727603494642,-371.737743,0.00016,2]
[339416056,1727603494652,-371.737743,0.00016,2]
[339416057,1727603494662,-151.0,0.00016,2]
[339416058,1727603494673,-158.927363,0.00016,2]
[339416059,1727603494685,-150.112233,0.00016,2]
[339416060,1727603494695,-151.0,0.00016,2]
[339416061,1727603494706,-151.0,0.00016,2]
[339416062,1727603494727,-403.280072,0.00016,2]
[339416063,1727603494738,-728.131764,0.00016,2]
[339416064,1727603494748,-403.280072,0.00016,2]
[339416065,1727603494759,-4123.873367,0.00016,2]
[339416066,1727603494771,-728.131764,0.00016,2]
[339416067,1727603494784,-4123.873367,0.00016,2]
[339416068,1727603494795,-699.771734,0.00016,2]
[339416069,1727603494805,-699.771734,0.00016,2]
[339416070,1727603494816,-151.0,0.00016,2]
[339416071,1727603494829,-151.0,0.00016,2]
[339416072,1727603494839,-151.0,0.00016,2]
[339416073,1727603494852,-157.978233,0.00016,2]
[339416074,1727603494863,-151.0,0.00016,2]
[339416075,1727603494875,-151.0,0.00016,2]
[339416076,1727603494887,-543.652871,0.00016,2]
[339416077,1727603494899,-246.3001,0.00016,2]
[339416078,1727603494909,-543.652871,0.00016,2]
[339416079,1727603494921,-246.3001,0.00016,2]
[339416080,1727603494932,-151.0,0.00016,2]
[339416081,1727603494943,-348.246697,0.00016,2]
[339416082,1727603494954,-348.246697,0.00016,2]
[339416083,1727603494965,-158.284612,0.00016,2]
[339416084,1727603494976,-158.284612,0.00016,2]
[339416085,1727603494987,-1442.631507,0.00016,2]
[339416086,1727603494998,-1442.631507,0.00016,2]
[339416087,1727603495010,-151.0,0.00016,2]
[339416088,1727603495025,-163.881646,0.00016,2]
[339416089,1727603495036,-176.461399,0.00016,2]
[339416090,1727603495047,-163.881646,0.00016,2]
[339416091,1727603495058,-2170.578063,0.00016,2]
[339416092,1727603495072,-2170.578063,0.00016,2]
[339416093,1727603495083,-151.0,0.00016,2]
[339416094,1727603495095,-186.704358,0.00016,2]
[339416095,1727603495106,-186.704358,0.00016,2]
[339416096,1727603495116,-299.025292,0.00016,2]
[339416097,1727603495127,-1866.673571,0.00016,2]
[339416098,1727603495139,-299.025292,0.00016,2]
[339416099,1727603495150,-1866.673571,0.00016,2]
[339416100,1727603495161,-2858.773645,0.00016,2]
[339416101,1727603495174,-2858.773645,0.00016,2]
[339416102,1727603495186,-3705.442434,0.00016,2]
[339416103,1727603495198,-886.961266,0.00016,2]
[339416104,1727603495209,-886.961266,0.00016,2]
[339416105,1727603495221,-3705.442434,0.00016,2]
[339416106,1727603495231,-151.0,0.00016,2]
[339416107,1727603495244,-151.0,0.00016,2]
[339416108,1727603495255,-2093.743692,0.00016,2]
[339416109,1727603495270,-1000.0,0.00016003,2]
[339416110,1727603495282,-1000.0,0.00016016,2]
[339416111,1727603495292,-1000.0,0.00016025,2]
[339416112,1727603495304,-1000.0,0.00016029,2]
[339416113,1727603495315,-1000.0,0.00016031,2]
[339416114,1727603495327,-1000.0,0.00016032,2]
[339416115,1727603495338,-1000.0,0.0001604,2]
[339416116,1727603495348,-1000.0,0.0001604,2]
[339416117,1727603495358,-1000.0,0.00016079,2]
[339416118,1727603495368,-1000.0,0.00016082,2]
[339416119,1727603495379,-371.737743,0.0001609,2]
[339416120,1727603495391,-371.737743,0.0001609,2]
[339416121,1727603495401,-151.0,0.0001609,2]
[339416122,1727603495411,-151.0,0.0001609,2]
[339416123,1727603495422,-151.0,0.0001609,2]
[339416124,1727603495433,-4123.873367,0.0001609,2]
[339416125,1727603495444,-4123.873367,0.0001609,2]
[339416126,1727603495454,-699.771734,0.0001609,2]
[339416127,1727603495464,-699.771734,0.0001609,2]
[339416128,1727603495476,-151.0,0.0001609,2]
[339416129,1727603495487,-151.0,0.0001609,2]
[339416130,1727603495498,-151.0,0.0001609,2]
[339416131,1727603495510,-151.0,0.0001609,2]
[339416132,1727603495522,-543.652871,0.0001609,2]
[339416133,1727603495533,-246.3001,0.0001609,2]
[339416134,1727603495543,-543.652871,0.0001609,2]
[339416135,1727603495555,-246.3001,0.0001609,2]
[339416136,1727603495566,-151.0,0.0001609,2]
[339416137,1727603495576,-348.246697,0.0001609,2]
[339416138,1727603495587,-348.246697,0.0001609,2]
[339416139,1727603495599,-158.284612,0.0001609,2]
[339416140,1727603495610,-158.284612,0.0001609,2]